bitfinex/quotes_ETHUSD_20251021
["timestamp","ask_amount","ask_price","bid_price","bid_amount"]
[1761082573401,0.4319,3952.7,3952.2,20.47822131]
[1761082573584,0.4319,3952.6,3952.2,20.47822131]
[1761082574709,0.4319,3952.6,3952.2,17.948]
[1761082575327,0.50688,3952.5,3951.9,3.446]
[1761082575689,2.96201191,3952.4,3951.9,3.446]
[1761082575887,0.03162715,3952.3,3951.6,20.47760619]
[1761082576223,2.99370509,3952.3,3951.6,17.947]
[1761082576426,0.46352715,3952.3,3951.6,17.947]
[1761082576630,0.4319,3952.2,3951.6,20.4776013]
[1761082577043,0.1137,3951.7,3951.6,0.002]
[1761082577639,0.5424,3951.7,3951.6,0.002]
[1761082582308,5.13503646,3951.7,3951.6,0.002]
[1761082582523,8.60966841,3951.7,3951.6,0.002]
[1761082582731,9.6920472,3951.7,3951.6,0.002]
[1761082583639,9.81757422,3951.7,3951.6,0.002]
[1761082584029,14.14336559,3951.4,3951.3,1e-08]
[1761082584230,16.55249127,3951.4,3951.3,1e-08]
[1761082584455,20.11924571,3951.4,3951.3,1e-08]
[1761082584754,20.35103147,3951.4,3951.3,1e-08]
[1761082584959,29.27472847,3951.4,3951.3,1e-08]
[1761082585152,28.37332316,3951.4,3951.3,1e-08]
[1761082585454,26.16298716,3951.4,3951.3,1e-08]
[1761082586062,28.05374216,3951.4,3951.3,1e-08]
[1761082586223,28.72950579,3951.4,3951.3,1e-08]
[1761082586567,28.05374216,3951.4,3951.3,1e-08]
[1761082586860,28.72932738,3951.4,3951.3,1e-08]
[1761082587094,29.04890838,3951.4,3951.3,1e-08]
[1761082587367,29.04890838,3951.4,3950.9,0.002]
[1761082587368,22.3058978,3951.0,3950.9,0.002]
[1761082587665,38.77763118,3951.0,3950.9,0.002]
[1761082587961,38.77763118,3951.0,3949.4,0.002]
[1761082587962,17.59819939,3950.2,3949.4,0.002]
[1761082588168,28.93539939,3950.2,3949.4,0.002]
[1761082588457,23.36319677,3950.2,3949.4,0.002]
[1761082588664,23.65939935,3950.2,3949.4,0.002]
[1761082589049,29.12903135,3950.2,3949.4,0.002]
[1761082589532,15.21471788,3949.4,3949.3,1e-08]
[1761082589729,38.99684926,3949.4,3949.3,1e-08]
[1761082589948,0.50688,3947.6,3947.3,0.002]
[1761082590260,2.53301522,3947.9,3947.3,0.002]
[1761082590261,4.82089306,3947.4,3947.3,0.002]
[1761082590461,2.31924641,3947.4,3947.3,0.002]
[1761082590623,2.77424641,3947.4,3947.3,0.002]
[1761082591371,2.74258,3947.4,3947.3,0.002]
[1761082591573,1.11401074,3949.4,3947.3,0.4636]
[1761082591880,3.441,3949.5,3949.3,0.2155]
[1761082592055,0.0926,3950.0,3949.3,0.2155]
[1761082592056,1.066,3949.4,3949.3,0.2155]
[1761082592254,0.0926,3950.0,3949.3,0.2155]
[1761082592255,3.441,3949.6,3949.3,0.2155]
[1761082592460,0.50688,3949.5,3948.8,0.6771]
[1761082592655,0.50688,3949.3,3948.6,14.5]
[1761082592856,1.5552,3949.5,3948.5,2.74808204]
[1761082593262,0.50688,3949.4,3948.6,2.53253274]
[1761082593468,0.50688,3949.2,3948.5,14.7155]
[1761082593669,0.50688,3949.2,3948.5,14.5]
[1761082593868,0.50688,3949.2,3948.0,3.21000154]
[1761082593869,3.441,3949.1,3948.3,2.5327208]
[1761082594074,0.03165358,3949.0,3948.4,2.532638]
[1761082594401,3.441,3949.1,3948.5,2.53260206]
[1761082594559,3.441,3949.1,3948.6,2.53253183]
[1761082594962,0.4558,3949.0,3948.2,14.5]
[1761082595182,0.4558,3949.0,3948.2,17.03279861]
[1761082595801,0.4558,3949.0,3948.3,2.53273361]
[1761082596499,0.4558,3949.0,3948.4,2.53265553]
[1761082598495,0.4558,3949.0,3948.2,14.5]
[1761082598708,0.2255,3948.9,3948.2,14.5]
[1761082598908,0.2255,3948.9,3948.3,2.53271984]
[1761082599110,0.2255,3948.9,3947.8,0.4616]
[1761082599111,0.50688,3948.6,3947.5,5.97322759]
[1761082599412,0.50688,3948.4,3947.7,2.53307723]
[1761082599623,0.50688,3948.2,3947.6,14.5]
[1761082599768,0.50688,3948.2,3947.3,0.002]
[1761082599972,0.03166079,3948.1,3947.3,0.002]
[1761082600208,0.03166079,3948.1,3947.3,14.502]
[1761082600415,3.438,3948.0,3947.5,2.53320832]
[1761082601015,3.438,3948.0,3947.5,2.53320395]
[1761082601316,3.438,3948.0,3947.3,17.03537027]
[1761082601498,3.438,3948.0,3947.5,2.53320427]
[1761082601697,3.438,3948.0,3947.3,17.03537027]
[1761082601698,3.438,3948.0,3947.6,2.53318054]
[1761082602330,3.438,3948.0,3947.5,2.5332318]
[1761082602838,3.438,3948.0,3947.6,2.5331761]
[1761082603416,3.438,3948.0,3947.3,17.49695755]
[1761082603417,0.50688,3947.9,3947.3,0.002]
[1761082603745,0.50688,3947.9,3947.3,2.53535465]
[1761082604749,2.0096,3948.4,3947.3,2.53535465]
[1761082604750,3.437,3948.7,3947.6,0.002]
[1761082604911,3.437,3948.7,3947.7,0.4616]
[1761082605099,2.92380155,3949.2,3947.7,0.4616]
[1761082605305,1.5552,3949.0,3948.3,2.53271716]
[1761082605500,1.5552,3949.0,3947.6,0.002]
[1761082605501,1.5552,3949.0,3948.4,2.53266468]
[1761082605742,0.50688,3948.9,3948.4,2.53266468]
[1761082605947,0.50688,3948.9,3948.2,0.2155]
[1761082605948,1.5552,3949.0,3948.3,2.53271502]
[1761082606161,0.50688,3948.9,3948.3,2.53271502]
[1761082607351,0.50688,3948.9,3948.3,2.53267272]
[1761082607944,0.50688,3948.9,3948.3,2.53273432]
[1761082609004,0.50688,3948.9,3948.4,2.53266578]
[1761082609207,3.435,3948.9,3948.7,2.53243607]
[1761082609507,1.5552,3948.8,3948.7,2.53243607]
[1761082609722,4.9902,3948.9,3948.8,2.53241491]
[1761082610151,0.50688,3948.8,3948.1,14.5]
[1761082610309,0.50688,3948.6,3947.9,2.53293259]
[1761082610510,3.435,3948.5,3947.9,2.53293259]
[1761082611045,3.435,3948.5,3947.6,0.4636]
[1761082611253,1.5552,3948.9,3948.4,0.2155]
[1761082611420,1.5552,3948.9,3948.7,2.53247465]
[1761082611597,1.5552,3948.9,3948.7,2.99407465]
[1761082611800,0.001,3949.7,3949.1,2.53216805]
[1761082612003,0.001,3949.7,3948.8,0.4616]
[1761082612004,3.434,3949.6,3948.9,2.53235078]
[1761082612227,1.5552,3949.5,3949.2,2.53215841]
[1761082612500,3.434,3949.6,3949.2,2.53215841]
[1761082613699,3.434,3949.6,3949.2,3.00155841]
[1761082617725,3.434,3949.6,3949.2,2.53215841]
[1761082618116,3.434,3949.6,3949.1,2.5322136]
[1761082618434,3.434,3949.6,3949.1,2.53216749]
[1761082618638,3.434,3949.6,3949.0,0.4694]
[1761082618836,3.434,3949.6,3949.1,2.53222253]
[1761082619014,3.434,3949.6,3949.2,2.53215841]
[1761082619432,3.434,3949.6,3949.1,2.53220025]
[1761082620011,3.434,3949.6,3948.7,3.433]
[1761082620318,0.53852957,3949.5,3948.7,0.4694]
[1761082620656,0.53852957,3949.5,3948.8,2.53237331]
[1761082620854,0.53852957,3949.5,3948.9,2.53233675]
[1761082621059,0.53852957,3949.5,3949.0,2.53224]
[1761082621264,0.53852957,3949.5,3948.8,0.4694]
[1761082621858,2.09372957,3949.5,3948.8,2.53235356]
[1761082622035,2.09372957,3949.5,3948.8,2.53241491]
[1761082622216,2.09372957,3949.5,3948.8,3.00181491]
[1761082622422,2.09372957,3949.5,3948.9,2.53232866]
[1761082623024,2.09372957,3949.5,3949.0,2.53228295]
[1761082626021,2.09372957,3949.5,3948.9,2.53233055]
[1761082626348,2.09372957,3949.5,3949.0,2.53228212]
[1761082626861,2.09372957,3949.5,3949.0,3.00168212]
[1761082627226,2.06208,3949.5,3949.0,3.00168212]
[1761082627626,2.06208,3949.5,3949.0,2.53228212]
[1761082627961,0.50688,3949.5,3949.0,2.53228212]
[1761082628167,3.434,3949.6,3949.2,2.53215841]
[1761082629554,3.434,3949.6,3949.2,3.00155841]
[1761082629886,0.001,3949.7,3949.2,7.32464259]
[1761082631238,0.001,3949.7,3949.2,6.42855841]
[1761082639209,0.001,3949.7,3949.2,7.98375841]
[1761082642891,0.001,3949.7,3949.2,5.95115841]
[1761082643483,0.001,3949.7,3949.2,6.42585841]
[1761082644895,0.001,3949.7,3949.2,6.41725841]
[1761082645816,0.001,3949.7,3949.2,7.31240776]
[1761082647103,0.001,3949.7,3949.2,6.41725841]
[1761082647601,0.001,3949.7,3949.2,5.95115841]
[1761082648007,0.001,3949.7,3949.2,6.41725841]
[1761082649912,0.001,3949.7,3949.2,5.95115841]
[1761082651704,0.001,3949.7,3949.2,6.41725841]
[1761082652622,0.001,3949.7,3949.2,5.95115841]
[1761082653132,0.001,3949.7,3949.2,6.41725841]
[1761082653622,0.001,3949.7,3949.2,5.95115841]
[1761082654029,0.001,3949.7,3949.2,6.41725841]
[1761082655427,0.001,3949.7,3949.2,5.95115841]
[1761082655634,0.001,3949.7,3949.2,2.53215841]
[1761082655923,0.001,3949.7,3949.1,3.413]
[1761082655924,0.257,3949.3,3949.1,3.413]
[1761082656628,0.257,3949.3,3949.1,2.53220871]
[1761082656832,0.257,3949.3,3949.0,3.415]
[1761082657331,0.53589071,3949.3,3949.0,5.94727579]
[1761082657532,0.257,3949.3,3949.0,5.94727579]
[1761082657729,0.256,3949.2,3949.0,5.94727579]
[1761082657931,0.256,3949.2,3949.1,2.53222253]
[1761082658323,0.256,3949.2,3949.1,2.53422253]
[1761082665449,0.001,3949.3,3949.1,2.53422253]
[1761082665638,0.001,3949.3,3949.2,2.53215841]
[1761082666063,0.257,3949.3,3949.2,2.53215841]
[1761082668464,0.001,3949.3,3949.2,2.53215841]
[1761082671065,0.001,3949.3,3949.2,7.3111983]
[1761082671278,0.001,3949.3,3949.2,7.29872494]
[1761082673271,0.001,3949.3,3949.2,16.8674557]
[1761082673597,0.001,3949.7,3949.6,4.08710196]
[1761082673792,0.001,3949.7,3949.6,10.95789167]
[1761082673994,0.001,3949.7,3949.6,12.80207483]
[1761082674306,0.001,3952.1,3950.0,2.53164556]
[1761082674600,0.001,3952.1,3950.0,9.40142886]
[1761082674902,0.2259,3952.0,3950.0,9.82856832]
[1761082675398,0.001,3952.1,3950.0,9.82856832]
[1761082675399,0.2269,3952.1,3951.6,2.5306205]
[1761082675611,0.2269,3952.1,3951.6,5.9356205]
[1761082677864,0.001,3952.1,3951.6,5.9356205]
[1761082678072,0.2269,3951.7,3951.6,2.5306205]
[1761082678466,0.001,3951.7,3951.6,2.5306205]
[1761082679784,0.001,3951.7,3951.6,17.0306205]
[1761082679990,0.2269,3951.7,3951.6,17.0306205]
[1761082683329,0.2269,3951.7,3951.6,2.5306205]
[1761082683821,0.2269,3951.7,3951.6,17.0306205]
[1761082684003,0.001,3951.7,3951.6,17.0306205]
[1761082684685,0.001,3951.7,3951.6,19.07501857]
[1761082685185,0.001,3951.7,3951.6,19.51461857]
[1761082692369,0.001,3951.7,3951.6,22.47101857]
[1761082692631,0.001,3951.7,3951.6,19.07501857]
[1761082692814,0.001,3951.7,3951.6,22.47001857]
[1761082694227,0.2268,3951.7,3951.6,14.5]
[1761082694435,3.90102276,3951.7,3950.1,0.002]
[1761082694616,0.50688,3951.5,3950.1,0.002]
[1761082694825,0.2313,3950.2,3950.1,0.002]
[1761082695443,0.4572,3950.2,3950.1,17.03358147]
[1761082697952,2.53086815,3951.3,3950.6,2.53124162]
[1761082697953,0.4548,3950.9,3950.6,2.53124162]
[1761082699032,0.4548,3950.9,3950.7,17.03116675]
[1761082699558,0.4548,3950.9,3950.7,14.5]
[1761082704374,0.4548,3950.9,3950.1,0.002]
[1761082704877,0.4548,3950.9,3950.3,2.53144559]
[1761082705364,1.16199075,3950.9,3950.3,2.53144559]
[1761082705556,1.16199075,3950.9,3950.4,14.5]
[1761082705753,0.4548,3950.8,3950.4,14.5]
[1761082706667,0.4548,3950.8,3950.4,17.03136976]
[1761082706841,0.4548,3950.8,3950.4,17.03137237]
[1761082707446,0.4548,3950.8,3950.4,14.5]
[1761082708551,0.4548,3950.8,3950.4,17.03137994]
[1761082709870,0.4548,3950.8,3950.4,14.5]
[1761082710433,0.4548,3950.8,3950.4,17.03138277]
[1761082710887,1.5552,3951.4,3950.4,17.03138277]
[1761082710888,1.5552,3951.4,3950.4,16.45648999]
[1761082711040,6.34,3951.5,3950.4,16.45648999]
[1761082711041,6.5716,3951.5,3950.5,0.4284]
[1761082711274,0.2316,3951.4,3951.1,2.53093014]
[1761082712183,0.2326,3951.4,3951.1,2.53093014]
[1761082713410,0.2326,3951.4,3950.4,16.45648999]
[1761082713612,0.2326,3951.4,3950.6,2.53126107]
[1761082713809,0.26423435,3951.4,3950.7,2.53114528]
[1761082714105,0.26423435,3951.4,3950.8,2.53112785]
[1761082714304,0.26423435,3951.4,3950.4,17.03134027]
[1761082714305,2.53087915,3951.2,3950.4,17.03134027]
[1761082714504,0.50688,3951.2,3950.7,2.5311922]
[1761082714677,0.2316,3951.1,3950.7,2.5311922]
[1761082715008,0.2316,3951.1,3950.5,2.53131062]
[1761082715521,0.2316,3951.1,3950.6,2.53125691]
[1761082716905,0.2254,3950.7,3950.4,14.5]
[1761082717305,0.2316,3950.6,3950.4,14.5]
[1761082718005,0.2316,3950.6,3950.1,0.002]
[1761082719008,0.2316,3950.6,3950.1,2.53357225]
[1761082719597,0.2316,3950.6,3950.2,14.5]
[1761082722606,0.2316,3950.6,3950.1,2.53357225]
[1761082723114,0.2316,3950.6,3950.1,17.03357225]
[1761082723619,2.53177376,3949.8,3949.3,0.002]
[1761082723781,0.2234,3948.9,3948.6,0.002]
[1761082723980,0.2234,3948.9,3948.4,0.002]
[1761082723981,4.59468731,3948.5,3948.4,0.002]
[1761082724212,4.59475146,3948.4,3947.6,0.002]
[1761082724390,4.59520055,3947.7,3947.6,0.002]
[1761082724593,8.81777443,3947.7,3947.6,0.002]
[1761082724986,9.03557443,3947.7,3947.6,0.002]
[1761082725186,9.45149113,3947.7,3947.6,0.002]
[1761082725389,8.91082413,3947.7,3947.6,0.002]
[1761082725587,15.79248706,3947.7,3947.6,0.002]
[1761082725803,16.51724691,3947.7,3947.6,0.002]
[1761082726417,16.13414691,3947.7,3947.6,0.002]
[1761082726609,15.17124691,3947.7,3947.6,0.002]
[1761082727902,14.44648706,3947.7,3947.6,0.002]
[1761082728635,2.06208,3947.7,3947.6,0.002]
[1761082728814,4.9392,3947.7,3947.6,0.002]
[1761082729132,0.8930534,3948.7,3947.6,0.002]
[1761082729324,3.92125889,3948.6,3948.0,2.53287763]
[1761082729521,0.50688,3948.5,3948.0,2.53287763]
[1761082729739,3.384,3948.6,3948.1,2.53284475]
[1761082730033,3.384,3948.6,3948.1,2.75455027]
[1761082730239,1.5552,3948.5,3948.0,14.5]
[1761082731036,1.5552,3948.5,3948.0,17.03291229]
[1761082732323,3.384,3948.5,3948.1,2.5328133]
[1761082733813,3.384,3948.5,3948.2,14.5]
[1761082734013,3.384,3948.5,3948.2,17.03279419]
[1761082734214,3.384,3948.5,3948.2,14.5]
[1761082736034,3.384,3948.5,3948.3,2.5326872]
[1761082737345,6.34,3949.0,3948.5,2.53260731]
[1761082737548,11.22481521,3949.8,3948.3,1.97872571]
[1761082737549,0.6751534,3949.9,3948.7,2.53247904]
[1761082737749,2.53138927,3950.4,3949.0,2.53228665]
[1761082737956,2.53138927,3950.4,3949.7,2.53183486]
[1761082737957,2.09211477,3950.3,3949.7,2.53183486]
[1761082738172,1.5552,3950.1,3949.2,2.53215841]
[1761082738446,1.5552,3950.1,3949.2,2.99035841]
[1761082738644,3.383,3950.2,3949.9,2.53169742]
[1761082738847,0.53701569,3950.1,3949.8,2.53176913]
[1761082739049,2.09221569,3950.1,3949.8,2.53176913]
[1761082739228,1.5552,3950.1,3949.9,2.53170038]
[1761082740030,1.5552,3950.1,3949.8,2.53175456]
[1761082740348,1.5552,3950.1,3949.3,0.4582]
[1761082740349,3.382,3950.4,3949.9,2.5316672]
[1761082740515,0.8983927,3950.3,3949.6,2.53189562]
[1761082740718,0.50688,3950.2,3949.1,14.5]
[1761082740921,3.80617279,3950.2,3949.4,2.5320294]
[1761082741122,0.50688,3950.0,3949.4,2.5320294]
[1761082741329,3.382,3949.9,3949.1,14.9582]
[1761082741529,3.382,3949.9,3949.1,14.5]
[1761082741530,0.50688,3949.8,3949.1,14.5]
[1761082741731,0.50688,3949.8,3949.2,2.5321528]
[1761082742565,0.50688,3949.8,3949.1,14.5]
[1761082742773,0.4486,3949.7,3949.1,14.5]
[1761082743467,0.4486,3949.7,3949.1,17.0321798]
[1761082743631,1.13552564,3949.7,3949.1,17.0321798]
[1761082744030,3.66737439,3949.7,3949.1,14.5]
[1761082744231,0.2306,3949.6,3949.1,17.03221414]
[1761082744445,3.38,3949.5,3949.1,14.5]
[1761082744929,0.2306,3949.4,3949.1,14.5]
[1761082746461,3.38,3949.5,3949.1,14.5]
[1761082746669,3.38,3949.9,3949.2,0.4582]
[1761082746964,0.53819109,3949.8,3949.5,2.53192399]
[1761082747332,3.65606797,3949.9,3949.5,2.53192399]
[1761082747532,3.38,3949.9,3949.2,0.4582]
[1761082747865,3.88588,3950.1,3949.2,0.4582]
[1761082748036,0.001,3949.4,3949.3,2.53209429]
[1761082748564,0.001,3949.4,3949.3,17.49029429]
[1761082748786,0.001,3949.4,3949.3,19.83054695]
[1761082754899,0.001,3949.4,3949.3,17.49029429]
[1761082755094,0.001,3949.4,3949.3,20.40909429]
[1761082757304,0.001,3949.4,3949.3,20.86729429]
[1761082757487,0.001,3949.4,3949.3,20.40909429]
[1761082758024,0.001,3951.1,3951.0,2.5310048]
[1761082758226,0.001,3951.1,3951.0,5.9070048]
[1761082758522,0.001,3951.1,3951.0,6.3652048]
[1761082758893,0.001,3951.1,3951.0,20.8652048]
[1761082759114,0.001,3951.1,3951.0,22.88267004]
[1761082765229,0.001,3951.1,3951.0,20.4070048]
[1761082777060,0.001,3951.1,3951.0,20.8765048]
[1761082778367,0.001,3951.8,3951.0,20.8765048]
[1761082778368,0.218,3953.0,3951.6,1.5552]
[1761082778542,1.28980168,3953.2,3952.8,2.52985225]
[1761082778543,0.54076562,3952.9,3952.8,2.52985225]
[1761082778880,0.37034828,3953.2,3953.1,2.52966026]
[1761082779080,0.91108846,3953.2,3953.1,2.52966026]
[1761082779284,0.37034828,3953.2,3953.1,17.02966026]
[1761082779482,0.37034828,3953.2,3953.1,20.39866026]
[1761082782187,0.37034828,3953.2,3953.1,23.1610003]
[1761082782888,0.37134828,3953.2,3953.1,23.1610003]
[1761082783254,0.001,3953.6,3953.5,2.52940432]
[1761082784358,0.001,3953.6,3953.3,5.89649881]
[1761082784359,0.001,3953.6,3953.4,2.52945348]
[1761082784586,0.001,3953.6,3953.5,2.52940432]
[1761082784956,0.001,3953.6,3953.5,3.84150411]
[1761082785163,0.001,3953.6,3953.5,5.39670411]
[1761082786155,0.001,3953.6,3953.5,19.89670411]
[1761082788716,0.44317226,3956.1,3953.9,2.52914843]
[1761082789003,0.4331,3956.0,3954.6,13.14942731]
[1761082789306,0.58287352,3956.0,3955.9,2.52786976]
[1761082789508,0.2148,3955.9,3955.7,2.52793897]
[1761082789688,0.2148,3955.9,3955.8,2.52793366]
[1761082791477,0.2148,3955.9,3955.7,2.52797722]
[1761082791676,0.2148,3955.9,3955.8,2.52793366]
[1761082793210,0.2148,3955.9,3954.7,1.33680273]
[1761082793211,0.40103087,3955.9,3954.7,1.33680273]
[1761082793385,0.40103087,3955.9,3954.8,3.364]
[1761082793708,0.2148,3955.8,3955.1,2.52833362]
[1761082793913,0.2189,3954.9,3954.6,2.52864273]
[1761082794083,0.2189,3954.9,3954.7,2.52862326]
[1761082794286,0.2149,3954.8,3954.7,2.52862326]
[1761082794486,0.2149,3954.8,3954.5,2.52875761]
[1761082794694,0.2149,3954.8,3954.7,2.52863681]
[1761082795795,0.2149,3954.8,3954.4,2.52881314]
[1761082795996,0.2149,3954.8,3954.7,2.52863681]
[1761082796192,0.2149,3954.8,3954.5,2.52876469]
[1761082796397,0.2149,3954.8,3954.2,3.363]
[1761082797007,0.2149,3954.8,3954.6,2.52865837]
[1761082797982,0.2149,3954.8,3954.7,2.52863681]
[1761082800313,0.2149,3954.8,3954.6,0.002]
[1761082800314,2.52863681,3954.7,3954.6,0.002]
[1761082800623,4.91856845,3954.7,3954.6,0.002]
[1761082800909,5.10186049,3954.7,3954.6,0.002]
[1761082801113,5.63947315,3954.7,3954.6,0.002]
[1761082801309,9.60508415,3954.7,3954.6,0.002]
[1761082801522,9.15135315,3954.7,3954.6,0.002]
[1761082802429,9.15135315,3954.7,3954.2,0.002]
[1761082802430,0.50688,3954.6,3954.2,0.002]
[1761082802648,7.62454559,3954.3,3954.2,0.002]
[1761082802801,8.16215825,3954.3,3954.2,0.002]
[1761082802997,8.37705825,3954.3,3954.2,0.002]
[1761082804415,0.2189,3954.9,3954.2,0.002]
[1761082804731,0.2189,3954.9,3954.2,2.53094656]
[1761082805028,0.2189,3954.9,3954.5,2.5287473]
[1761082805531,0.4338,3954.9,3954.5,2.5287473]
[1761082806034,0.4338,3954.9,3954.6,14.5]
[1761082806404,0.2149,3954.8,3954.6,14.5]
[1761082810954,3.5739,3954.8,3954.6,14.5]
[1761082811425,10.4235309,3955.2,3954.6,14.5]
[1761082811626,0.54126581,3955.1,3954.6,14.5]
[1761082811842,3.89926581,3955.1,3954.6,14.5]
[1761082812025,3.358,3955.1,3954.7,2.52858085]
[1761082815337,3.358,3955.1,3954.8,14.5]
[1761082817672,6.34,3955.2,3954.8,14.9628]
[1761082817853,3.357,3955.7,3955.1,2.52838107]
[1761082818236,3.357,3955.7,3955.2,2.52831172]
[1761082818436,3.357,3955.7,3954.9,2.99130751]
[1761082818437,3.357,3955.7,3955.3,2.52820758]
[1761082818645,3.5704,3955.7,3955.3,2.52820758]
[1761082819049,3.357,3955.7,3955.4,2.5281755]
[1761082819248,0.001,3955.5,3955.0,2.52840065]
[1761082819659,0.001,3955.5,3955.1,2.52836193]
[1761082820650,0.001,3955.5,3955.0,2.52842317]
[1761082821690,0.001,3955.5,3955.1,2.52836868]
[1761082822480,0.2134,3955.4,3955.1,2.52836868]
[1761082822882,0.001,3955.5,3955.1,2.52836868]
[1761082824217,0.001,3955.5,3955.2,14.5]
[1761082826623,0.2134,3955.4,3955.2,14.5]
[1761082827622,0.001,3955.5,3955.2,14.5]
[1761082828121,1.24494633,3955.5,3955.2,14.5]
[1761082828421,2.74159146,3955.4,3955.2,14.5]
[1761082828624,2.74159146,3955.4,3954.7,2.52862581]
[1761082828625,3.353,3955.3,3954.7,2.52862581]
[1761082828806,3.59800316,3955.3,3954.8,2.52856676]
[1761082829001,6.09468184,3955.3,3954.7,2.52861991]
[1761082829201,6.09468184,3955.3,3954.9,14.5]
[1761082829748,3.03526564,3955.1,3954.5,0.002]
[1761082829891,0.2199,3954.6,3954.5,0.002]
[1761082830251,0.25150875,3954.6,3954.5,0.002]
[1761082830408,0.4338,3954.6,3954.5,0.002]
[1761082833610,2.96250075,3954.6,3954.5,0.002]
[1761082833857,0.4338,3954.6,3954.5,0.002]
[1761082834544,3.46938075,3954.6,3954.5,0.002]
[1761082835248,4.40447806,3954.6,3954.5,0.002]
[1761082836314,4.43608681,3954.6,3954.5,0.002]
[1761082840929,4.40447806,3954.6,3954.5,0.002]
[1761082841127,6.50218179,3954.6,3954.5,0.002]
[1761082847771,12.84218179,3954.6,3954.5,0.002]
[1761082848156,9.80660104,3954.6,3954.5,0.002]
[1761082848375,14.70699806,3954.6,3954.5,0.002]
[1761082848572,15.21387806,3954.6,3954.5,0.002]
[1761082848766,15.42787806,3954.6,3954.5,0.002]
[1761082849540,12.89917731,3954.6,3954.5,0.002]
[1761082849741,15.42787806,3954.6,3954.5,0.002]
[1761082850280,15.96978676,3954.6,3954.5,0.002]
[1761082853249,15.97078676,3954.6,3954.5,0.002]
[1761082853870,15.75678676,3954.6,3954.5,0.002]
[1761082854065,15.75696336,3954.6,3954.5,0.002]
[1761082855262,15.75496336,3954.6,3954.5,0.002]
[1761082858482,15.96896336,3954.6,3954.5,0.002]
[1761082859284,15.75496336,3954.6,3954.5,0.002]
[1761082859869,15.96896336,3954.6,3954.5,0.002]
[1761082865257,15.75496336,3954.6,3954.5,0.002]
[1761082868868,13.22626261,3954.6,3954.5,0.002]
[1761082869085,12.2911653,3954.6,3954.5,0.002]
[1761082869286,12.2911653,3954.6,3954.5,0.4341]
[1761082869888,12.2911653,3954.6,3954.5,0.002]
[1761082871591,14.81986605,3954.6,3954.5,0.002]
[1761082872859,12.2911653,3954.6,3954.5,0.002]
[1761082873570,14.81986605,3954.6,3954.5,0.002]
[1761082873888,16.62253035,3954.6,3954.5,0.002]
[1761082876504,16.82203035,3954.6,3954.5,0.002]
[1761082878057,16.62253035,3954.6,3954.5,0.002]
[1761082879095,16.82203035,3954.6,3954.5,0.002]
[1761082879800,16.82203035,3954.6,3953.7,2.53126635]
[1761082879801,16.82203035,3954.6,3949.9,2.75179404]
[1761082879802,0.2179,3953.2,3949.9,2.75179404]
[1761082879965,0.50688,3951.8,3951.0,0.6864]
[1761082880163,0.50688,3951.4,3950.7,0.2201]
[1761082880369,8.16368169,3951.3,3950.7,0.2201]
[1761082880697,8.16368169,3951.3,3950.4,2.53138184]
[1761082880698,0.50688,3951.1,3950.5,0.2201]
[1761082880900,3.338,3951.2,3950.1,0.4649]
[1761082880901,0.97556443,3951.0,3950.1,0.4649]
[1761082881100,0.50688,3950.8,3950.1,0.4649]
[1761082881298,0.50688,3950.6,3950.1,2.99645887]
[1761082881699,0.50688,3950.6,3950.2,2.99640845]
[1761082882093,0.50688,3950.6,3950.3,0.4649]
[1761082882604,0.50688,3950.6,3950.3,2.99634047]
[1761082882966,0.50688,3950.6,3950.4,0.4649]
[1761082883170,3.338,3951.0,3950.4,0.4649]
[1761082883371,0.2179,3952.3,3950.5,0.0124506]
[1761082883609,0.22349832,3952.4,3950.5,4.06645769]
[1761082883905,0.50688,3952.2,3951.6,2.53059379]
[1761082884079,1.5552,3952.2,3951.6,2.53059379]
[1761082884279,1.5552,3952.2,3951.7,0.6731]
[1761082884507,0.22349832,3952.4,3952.0,2.53030535]
[1761082884508,3.338,3952.4,3952.0,2.53030535]
[1761082884706,3.338,3952.4,3952.1,2.53027131]
[1761082885003,3.338,3952.4,3951.9,2.53042332]
[1761082885004,3.338,3952.4,3952.2,2.98252818]
[1761082885370,4.8932,3952.4,3952.3,0.4523]
[1761082886270,3.338,3952.4,3952.3,0.4523]
[1761082889826,1.5552,3952.6,3952.3,0.4523]
[1761082894920,2.06208,3953.0,3952.4,2.53006855]
[1761082895115,3.84288,3953.0,3952.4,2.93236855]
[1761082895286,3.84288,3953.0,3952.5,0.4523]
[1761082895482,0.50688,3953.0,3952.5,0.4523]
[1761082895688,0.001,3953.1,3952.5,0.4523]
[1761082895689,0.001,3953.1,3953.0,2.52972426]
[1761082895889,0.001,3953.1,3953.0,2.78269669]
[1761082896112,0.001,3953.1,3953.0,3.2474092]
[1761082896929,0.001,3953.1,3953.0,6.5834092]
[1761082897136,0.001,3953.1,3953.0,6.57099669]
[1761082900725,0.001,3953.1,3953.0,10.0157385]
[1761082901299,0.001,3953.1,3953.0,6.57099669]
[1761082902508,0.001,3953.1,3953.0,10.0157385]
[1761082909935,0.001,3953.1,3953.0,6.11869669]
[1761082910340,0.001,3953.1,3953.0,6.57099669]
[1761082913843,0.001,3953.1,3953.0,8.12619669]
[1761082914072,0.001,3953.1,3953.0,11.5709385]
[1761082914939,0.001,3953.1,3952.4,0.002]
[1761082915124,0.229,3953.1,3953.0,2.52972426]
[1761082916139,0.001,3953.1,3953.0,2.52972426]
[1761082917539,0.001,3953.1,3953.0,5.85872426]
[1761082919863,0.001,3953.1,3953.0,20.35872426]
[1761082920875,0.229,3953.1,3952.9,3.329]
[1761082921058,0.2147,3953.0,3952.9,3.329]
[1761082921440,0.4426,3953.0,3952.9,5.85878825]